Cogmind - Beta 13 @@@ ROGUE MODE // 2024.05.04 @ 09:10:47 Player: Lenbot7 Result: Destroyed by G-34 Mercenary with Small Laser Performance ------------- Evolutions (1) 500 Regions Visited (4) 800 Robots Destroyed (26) 130 Value Destroyed (684) 684 Prototype IDs (2) 40 Alien Tech Used (0) 0 Bonus (200) 200 TOTAL SCORE: 2354 Bonus ------- Entered Garrisons 200 Cogmind --------- Core Integrity 0/400 Matter 300/300 Energy 99/100 System Corruption 0% Temperature Cool (6) Movement Core (50) Location -9/Garrison Parts ------- > --- POWER (1) -------- (None) > --- PROPULSION (3) --- (None) > --- UTILITY (2) ------ Signal Interpreter > --- WEAPON (3) ------- (None) > --- INVENTORY (5) ---- Ion Engine Large Storage Unit High-capacity Storage Unit Peak State ------------ > --- POWER ------------ Light Ion Engine > --- PROPULSION ------- Light Treads Light Treads > --- UTILITY ---------- Large Storage Unit Visual Processing Unit > --- WEAPON ----------- Small Laser Beam Cannon Assault Rifle > --- INVENTORY -------- Ion Engine Signal Interpreter Seismic Detector Small Laser [Rating: 9] Favorites ----------- Power Light Ion Engine Engine Light Ion Engine Propulsion Light Treads Treads Light Treads Utility Signal Interpreter Device Sensor Array Storage Large Storage Unit Processor Signal Interpreter Weapon Assault Rifle Energy Gun Small Laser Energy Cannon Beam Cannon Ballistic Gun Assault Rifle Build | -11 -10 -9 -9 -9 ------- Run | Yrd Mat Mat Sto Gar Slots Evolved 2 | . . 2 . . Power . | . . . . . Propulsion 1 | . . 1 . . Utility . | . . . . . Weapon 1 | . . 1 . . Parts Attached 14 | 6 3 5 . . Power 2 | 2 . . . . Engine 2 | 2 . . . . Core . | . . . . . Reactor . | . . . . . Propulsion 2 | 2 . . . . Treads 2 | 2 . . . . Leg . | . . . . . Wheel . | . . . . . Hover . | . . . . . Flight . | . . . . . Utility 5 | . 2 3 . . Device 2 | . 1 1 . . Storage 1 | . 1 . . . Processor 2 | . . 2 . . Hackware . | . . . . . Protection . | . . . . . Artifact . | . . . . . Weapon 5 | 2 1 2 . . Energy Gun 3 | 1 . 2 . . Energy Cannon 1 | . 1 . . . Ballistic Gun 1 | 1 . . . . Ballistic Cannon . | . . . . . Launcher . | . . . . . Special Weapon . | . . . . . Impact Weapon . | . . . . . Slashing Weapon . | . . . . . Piercing Weapon . | . . . . . Special Melee Weapon . | . . . . . Unidentified Prototypes . | . . . . . Parts Lost 9 | . . 2 1 6 Power 2 | . . 1 . 1 Propulsion 2 | . . . 1 1 Utility 1 | . . . . 1 Weapon 4 | . . 1 . 3 Highest Loss Streak 6 | . . 2 1 6 To Critical Strikes . | . . . . . Average Slot Usage (%) 82 | . 88 84 83 63 Engine 10 | . 14 9 10 10 Treads 20 | . 28 22 18 10 Device 10 | . 9 10 11 7 Storage 2 | . 7 2 . . Processor 8 | . . 8 11 11 Energy Gun 9 | . 12 9 11 9 Energy Cannon 9 | . 1 11 11 10 Ballistic Gun 10 | . 14 11 11 6 Naked Turns . | . . . . . Heaviest Build 30 | 6 29 30 8 8 Greatest Support 40 | 40 40 40 40 20 Greatest Overweight (x) . | . . . . . Average Overweight (x) . | . . . . . Largest Inventory Capacity 15 | 5 15 15 5 5 Average Capacity 6 | 5 10 7 5 5 Most Carried 5 | 5 3 5 3 3 Average Carried 2 | 1 2 3 3 3 Final Capacity 15 | 5 15 5 5 5 Final Carried 3 | 2 3 3 3 3 Class Distribution -------------------- 64% | Skirmisher 32% | Mutant 3% | Gunner Dominant Class ---------------- Mutant | -10/Materials Skirmisher | -9/Materials Skirmisher | -9/Storage Mutant | -9/Garrison Resources | -11 -10 -9 -9 -9 ----------- Run | Yrd Mat Mat Sto Gar Matter Collected 477 | 100 189 152 36 . Remotely . | . . . . . Salvage Created 850 | . 39 525 181 105 Parts 57 | . 1 36 12 8 Haulers Intercepted . | . . . . . Recyclers Shooed . | . . . . . Parts Field Recycled . | . . . . . Retrieved Matter . | . . . . . Parts Self-Destructed . | . . . . . Prevented . | . . . . . Kills | -11 -10 -9 -9 -9 ------- Run | Yrd Mat Mat Sto Gar Combat Hostiles Destroyed 22 | . 1 12 6 3 Guns 14 | . 1 6 5 2 Cannons 7 | . . 5 1 1 Classes Destroyed 6 | . 1 5 . . Worker 1 | . . 1 . . Operator 1 | . . 1 . . Watcher 2 | . . 2 . . Swarmer 7 | . . 3 3 1 Grunt 13 | . 1 8 2 2 Sentry 2 | . . 1 1 . Best Kill Streak 6 | . 1 6 5 2 Combat Bots Only 5 | . 1 5 5 2 Max Kills in Single Turn 2 | . 1 2 1 1 Gunslinging . | . . . . . Exploded . | . . . . . Melee . | . . . . . Uniques/NPCs Destroyed . | . . . . . Combat | -11 -10 -9 -9 -9 -------- Run | Yrd Mat Mat Sto Gar Hostile Shots Fired 156 | . 5 59 17 75 Missed 43 | . . 13 4 26 Damage Taken 1177 | . 56 551 115 455 Core 415 | . 11 99 . 305 Absorbed by Shields 53 | . . . . 53 Core Remaining (%) 97 | 100 95 . . . Volleys Fired 55 | . 3 34 12 6 Largest 3 | . 2 3 3 3 Hottest 120 | . 60 120 120 120 Shots Fired 141 | . 6 87 36 12 Gun 89 | . 6 53 24 6 Cannon 52 | . . 34 12 6 Launcher . | . . . . . Special . | . . . . . Kinetic 50 | . 3 34 12 1 Thermal 91 | . 3 53 24 11 Explosive . | . . . . . Electromagnetic . | . . . . . Robot Hit Streak 7 | . 4 7 4 6 Robot Miss Streak 4 | . 1 4 4 1 Penetration Max . | . . . . . Secondary Targets . | . . . . . Shots Hit Robots 71 | . 4 45 15 7 Core Hits 35 | . 2 21 8 4 Critical Kills 1 | . . 1 . . Critical Parts Destroyed . | . . . . . Critical Strikes 1 | . . 1 . . Meltdown 1 | . . 1 . . Melee Attacks . | . . . . . Impact . | . . . . . Slashing . | . . . . . Piercing . | . . . . . Sneak Attacks . | . . . . . Combat Hostiles . | . . . . . Follow-up Attacks . | . . . . . Damage Inflicted 1019 | . 43 647 232 97 Guns 547 | . 43 332 128 44 Cannons 472 | . . 315 104 53 Explosions . | . . . . . Melee . | . . . . . Ramming . | . . . . . Kinetic 291 | . 20 212 59 . Thermal 728 | . 23 435 173 97 Explosive . | . . . . . Electromagnetic . | . . . . . Impact . | . . . . . Slashing . | . . . . . Piercing . | . . . . . Highest Corruption . | . . . . . Average Corruption . | . . . . . Corruption Purged . | . . . . . Corruption Blocked . | . . . . . Overload Shots . | . . . . . Overflow Damage . | . . . . . Projectiles . | . . . . . Explosions . | . . . . . Melee . | . . . . . Knockbacks . | . . . . . Impact . | . . . . . Kinetic . | . . . . . Secondary . | . . . . . Self-Inflicted Damage . | . . . . . Shots . | . . . . . Rammed 1 | . . 1 . . Targets Rammed 1 | . . 1 . . Kicked . | . . . . . Crushed . | . . . . . Highest Temperature 317 | . 18 317 239 117 Average Temperature 76 | . 13 74 97 56 Received Heat Transfer 415 | . 30 228 12 145 Siege Activations . | . . . . . Robots Corrupted . | . . . . . Combat Hostiles . | . . . . . Parts Fried . | . . . . . Impact Corruptions . | . . . . . Robots Melted 1 | . . 1 . . Combat Hostiles 1 | . . 1 . . Parts Melted 4 | . . 3 1 . Heat Transferred 1574 | . 50 941 372 211 Parts Sabotaged . | . . . . . Parts Stolen . | . . . . . Parts Stripped . | . . . . . Power Chain Reactions . | . . . . . Alert | -11 -10 -9 -9 -9 ------- Run | Yrd Mat Mat Sto Gar Peak Influence 253 | . 20 185 253 214 Initial 164 | . . 8 78 164 Average 90 | . 6 88 130 170 Maximum Alert Level 1 | . . . 1 1 Low Security (%) 96 | 100 100 100 82 97 Level 1 3 | . . . 17 2 Level 2 . | . . . . . Level 3 . | . . . . . Level 4 . | . . . . . Level 5 . | . . . . . High Security . | . . . . . Max Security . | . . . . . Squads Dispatched 3 | . . 2 1 . Investigation 3 | . . 2 1 . Extermination . | . . . . . Reinforcement . | . . . . . Assault . | . . . . . Garrison . | . . . . . Intercept . | . . . . . Searches Triggered . | . . . . . Construction Impeded . | . . . . . Haulers Reinforced . | . . . . . Active Scanning Responses . | . . . . . Cargo Convoy Interrupts . | . . . . . Stealth | -11 -10 -9 -9 -9 --------- Run | Yrd Mat Mat Sto Gar Distress Signals 3 | . . 2 1 . Communications Jammed . | . . . . . Distress Signals . | . . . . . Times Spotted 44 | . 1 17 7 19 Peak Tracking Total 16 | . 1 6 4 16 Tactical Retreats 2 | . . 1 1 . Traps | -11 -10 -9 -9 -9 ------- Run | Yrd Mat Mat Sto Gar Traps Triggered 2 | . . 1 . 1 Indirectly . | . . . . . Trap Hack Attempts . | . . . . . Triggered . | . . . . . Disarmed . | . . . . . Reprogrammed . | . . . . . Reused . | . . . . . Traps Extracted . | . . . . . Installed . | . . . . . Triggered . | . . . . . Machines | -11 -10 -9 -9 -9 ---------- Run | Yrd Mat Mat Sto Gar Machines Disabled 2 | . . 2 . . Max in Single Turn 1 | . . 1 . . Machines Repaired . | . . . . . Machines Dismantled . | . . . . . Machines Sabotaged . | . . . . . Overloaded Fab Kills . | . . . . . Hacking | -11 -10 -9 -9 -9 --------- Run | Yrd Mat Mat Sto Gar Machines Accessed 7 | . . 4 3 . Terminals 3 | . . 2 1 . Fabricators . | . . . . . Repair Stations 1 | . . . 1 . Recycling Units 2 | . . 2 . . Scanalyzers . | . . . . . Garrison Access 1 | . . . 1 . Total Hacks 22 | . . 14 8 . Successful 11 | . . 8 3 . Failed 11 | . . 6 5 . Catastrophic . | . . . . . Database Lockouts . | . . . . . Manual . | . . . . . Terminals 11 | . . 7 4 . Fabricators . | . . . . . Repair Stations 1 | . . . 1 . Recycling Units 7 | . . 7 . . Scanalyzers . | . . . . . Garrison Access 3 | . . . 3 . Terminal Hacks 4 | . . 3 1 . Record 2 | . . 2 . . Part Schematic 1 | . . . 1 . Prototype ID Bank 1 | . . 1 . . Fabricator Hacks . | . . . . . Repair Station Hacks 1 | . . . 1 . Refit 1 | . . . 1 . Recycling Unit Hacks 5 | . . 5 . . Recycle Component 1 | . . 1 . . Process 1 | . . 1 . . Report Inventory 1 | . . 1 . . Retrieve Components 2 | . . 2 . . Scanalyzer . | . . . . . Garrison Access Hacks 1 | . . . 1 . Unlock Access 1 | . . . 1 . Unauthorized Hacks . | . . . . . Terminals . | . . . . . Fabricators . | . . . . . Repair Stations . | . . . . . Recycling Units . | . . . . . Scanalyzers . | . . . . . Garrison Access . | . . . . . Data Cores Recovered 1 | . . 1 . . Used . | . . . . . Hacking Detections 6 | . . 4 2 . Full Trace Events 2 | . . 1 1 . Feedback Events . | . . . . . Feedback Blocked . | . . . . . Robot Schematics Acquired . | . . . . . Robots Built . | . . . . . Authchips . | . . . . . Time . | . . . . . Total Robot Build Rating . | . . . . . Part Schematics Acquired 1 | . . . 1 . Parts Built . | . . . . . Authchips . | . . . . . Time . | . . . . . Total Part Build Rating . | . . . . . Parts Repaired . | . . . . . Time . | . . . . . Parts Recycled 1 | . . 1 . . Recycled Matter 40 | . . 40 . . Retrieved Matter . | . . . . . Retrieved Components 4 | . . 4 . . Parts Scanalyzed . | . . . . . Part Schematics Acquired . | . . . . . Parts Damaged . | . . . . . Bothacking | -11 -10 -9 -9 -9 ------------ Run | Yrd Mat Mat Sto Gar Used RIF Installer . | . . . . . Robots Hacked . | . . . . . Non-combat . | . . . . . Combat . | . . . . . Robot Hacks Applied . | . . . . . Relay Couplers Released . | . . . . . Fabnet Peak Effective % . | . . . . . Robots Rewired . | . . . . . Allies Hacked . | . . . . . Hacks Repelled . | . . . . . Allies | -11 -10 -9 -9 -9 -------- Run | Yrd Mat Mat Sto Gar Total Allies . | . . . . . Largest Group . | . . . . . Highest-Rated Group . | . . . . . Highest-Rated Ally . | . . . . . Total Orders . | . . . . . Ally Attacks . | . . . . . Total Damage . | . . . . . Kills . | . . . . . Allies Corrupted . | . . . . . Allies Melted . | . . . . . Intel | -11 -10 -9 -9 -9 ------- Run | Yrd Mat Mat Sto Gar Robot Analysis Total . | . . . . . Derelict Logs Recovered . | . . . . . Drone Launches . | . . . . . Drone Recoveries . | . . . . . Exploration | -11 -10 -9 -9 -9 ------------- Run | Yrd Mat Mat Sto Gar Turns Passed 1104 | 68 130 576 221 109 Spaces Moved 475 | 40 72 235 66 62 Core 21 | 8 . . . 13 Treads 454 | 32 72 235 66 49 Legs . | . . . . . Wheels . | . . . . . Hover . | . . . . . Flight . | . . . . . Fastest Speed 50 | 50 160 160 160 50 Average Speed 155 | 138 160 160 160 136 Slowest Speed 160 | 160 160 160 160 160 Overloaded Moves . | . . . . . Propulsion Burnouts . | . . . . . Robots Hopped . | . . . . . Cave-ins Triggered . | . . . . . Exploration Rate (%) 15 | 3 18 17 16 21 Regions Visited 4 Branch Regions 1 Pre-discovered Areas . | . . . . . Known Exits Taken 2 | . . 1 1 . Unknown Exits Taken 2 | 1 1 . . . Scrap Searched . | . . . . . Spaces Dug . | . . . . . Terrain Destroyed . | . . . . . Melee . | . . . . . Projectile . | . . . . . AOE . | . . . . . Terrain Rammed . | . . . . . Walls Destroyed . | . . . . . Machines Disabled . | . . . . . Actions | -11 -10 -9 -9 -9 --------- Run | Yrd Mat Mat Sto Gar Total 726 | 53 81 362 155 75 Wait 160 | . . 82 78 . Move 471 | 39 71 234 65 62 Hop . | . . . . . Pick Up 14 | 7 3 4 . . Fast Attach . | . . . . . Attach 13 | 6 3 4 . . Detach 4 | 1 1 2 . . Swap 1 | . . 1 . . Drop . | . . . . . Fire 55 | . 3 34 12 6 Melee . | . . . . . Ram . | . . . . . Kick . | . . . . . Crush 1 | . . 1 . . Escape Stasis 7 | . . . . 7 Rewire . | . . . . . Trap . | . . . . . Miscellaneous . | . . . . . Route ------- -11/Scrapyard -10/Materials -9/Materials -9/Storage -9/Garrison History --------- Turn | Location | Event 41 | -11/Scrapyard | Discovered new exit (range 16) 69 | -11/Scrapyard | Entered Materials 175 | -10/Materials | Discovered new exit (range 8) 199 | -10/Materials | Entered another Materials area 199 | -9/Materials | Evolved 2 slots: Propulsion x1, Weapon x1 620 | -9/Materials | Build established: Skirmisher 697 | -9/Materials | Discovered new exit (range 14) 773 | -9/Materials | Identified exit to Storage 775 | -9/Materials | Entered Storage 992 | -9/Storage | Identified exit to Garrison 996 | -9/Storage | Entered Garrison 1052 | -9/Garrison | Triggered checkpoint 1090 | -9/Garrison | Triggered checkpoint 1095 | -9/Garrison | Core integrity fell below 50% 1102 | -9/Garrison | Core integrity fell below 20% 1105 | -9/Garrison | Destroyed by G-34 Mercenary with Small Laser Last Messages --------------- Lgt. Treads destroyed. Backup Power I destroyed. Beam Cannon destroyed. Garrison Door activated. C-30 ARC bursts open, deploying its payload. G-47 Trooper unfolds itself. G-34 Mercenary unfolds itself. S-10 Pest suffers critical hit (Burn). S-10 Pest destroyed. Triggered Stasis Trap. A bubble of rippling energy engulfs the area. Field strength at 94. Field strength at 88. Field strength at 73. Field strength at 67. Field strength at 49. Field strength at 38. Field strength at 18. Field strength at 12. Stasis field depleted. Map ----- +----------------------------------------------------+ | ?????????????????????????????????????????????????? | | ?????????????????????????????????????????????????? | | ?????????????????????????????????????????????????? | | ??????????????????????????????????????????#####??? | | ??????????????????????????????????????????# #??? | | ??????????????????????????????????######### #??? | | ??????????????????????????????????# #??? | | ??????????????????????????????????# #??? | | ??????????????????????????????????# ##########??? | | ??????????????????????????????????# #???????????? | | ??????????????????????????????????# #???????????? | | ??????????????????????????????????# #???????????? | | ??????????????????????????????????# #???????????? | | ??????????????????????????????????# #???????????? | | ??????????????????????????????????# #???????????? | | ??????????????????????????????????# #???????????? | | ??????????????????????????????????# #???????????? | | ??????????????????????????????????# #???????????? | | ???????????????????????############ #???????????? | | ???????????????????????# #???????????? | | ???????????????????????# #???????????? | | ???????????????????????# ######### #???????????? | | ???????????????????????# #???????# #???????????? | | ???????????????????????# #???????# #???????????? | | ?????????????#?????????# #???????# ???????????? | | ?????????????# ??####### @#???????# ##??????????? | | ?????????????# ?# ## ^#???????# #???????????? | | ????????????## ## ##ss##??????? #???????????? | | ????????????# =%[ s ######## #???????????? | | ????????????# %=s s #???????????? | | ????????????# *gsg p #???????????? | | ????????????# ## g## g###########???????????? | | ??????????### ## ## ###???????????????????? | | ??????????#" #???????????????????? | | ??????????#%" gg #???????????????????? | | ??????????#" g #???????????????????? | | ??????????# g #???????????????????? | | ??????????### ## ## ###???????????????????? | | ????????????# ?# ## =%#?????????????????????? | | ??????????? ? ????????????????????? | | ????????? * ???????????????????? | | ?????????#### =% ??????????????????? | | ????????????## ## ########+#?????????????????? | | ?????????????# ?# #??????? #?????????????????? | | ?????????????# ??######????????#?????????????????? | | ?????????????# ??????????????????????????????????? | | ?????????????????????????????????????????????????? | | ?????????????????????????????????????????????????? | | ?????????????????????????????????????????????????? | | ?????????????????????????????????????????????????? | +----------------------------------------------------+ Best States ------------- Heat Dissipation 28 Energy Generation 10 Energy Capacity 250 Matter Stores 300 Matter Capacity 300 Sight Range 18 Robot Scan Range 14 Terrain Scan Density 10 Evasion (%) 40 Recoil Reduction 2 Item Schematics ----------------- Ion Cannon | -9/Storage | Hacked Robot Schematics ------------------ None Fabricated ------------ Nothing Alien Tech Used ----------------- None Achievements -------------- It's Just You Challenges ------------ None Game ------ Seed RemoteDiametricAccelerator Manual? 0 Play Time 00:16:57 Cumulative 2.1 hours Start 2024.05.04 @ 08:54:19 End 2024.05.04 @ 09:10:47 Sessions 1 Manual Loads 0 Difficulty Rogue Special Mode None Game No. 9 Rogue 9 Adventurer 0 Explorer 0 Win Type - Total 0 Types 0/0/0/0/0/0/0/0/0 Lore% 3 Gallery% 6 Achievement% 7 Wizard Run 0 Options --------- Layout 1 ASCII 0 Keyboard 0 Movement Mouse Keybinds 0 Fullscreen 1 Font 20/SmallcapsGlow Map View 50x35 Zoom Use 0% Tactical HUD 0 Map Filters NONE Filters NONE Steam 1 RUN: 25bd6c88-bc05-405d-b9ac-23da59609614